bitfinex/quotes_BTCUSD_20251010
["timestamp","ask_amount","ask_price","bid_price","bid_amount"]
[1760080383297,0.89088379,121460.0,121450.0,0.02155622]
[1760080383517,1.12376379,121460.0,121450.0,0.02155622]
[1760080383931,1.43306766,121460.0,121450.0,0.02155622]
[1760080384611,1.43314766,121460.0,121450.0,0.02155622]
[1760080384834,1.36270666,121460.0,121450.0,0.02155622]
[1760080385048,1.3637351,121460.0,121450.0,0.02155622]
[1760080385260,1.0450551,121460.0,121450.0,0.04137074]
[1760080385512,1.4925381,121460.0,121450.0,0.04137074]
[1760080385725,1.4925381,121460.0,121450.0,0.02155622]
[1760080386480,1.2595781,121460.0,121450.0,0.02155622]
[1760080386669,1.4925381,121460.0,121450.0,0.02155622]
[1760080387692,1.4924981,121460.0,121450.0,0.02155622]
[1760080388105,1.4924981,121460.0,121450.0,0.04137074]
[1760080388311,1.2595781,121460.0,121450.0,0.04137074]
[1760080388522,1.4924981,121460.0,121450.0,0.04137074]
[1760080388952,1.4924981,121460.0,121450.0,0.02155622]
[1760080391272,1.2595781,121460.0,121450.0,0.02155622]
[1760080391551,1.4924581,121460.0,121450.0,0.02155622]
[1760080392051,1.2595781,121460.0,121450.0,0.02155622]
[1760080392504,1.4924581,121460.0,121450.0,0.02155622]
[1760080392729,0.89017757,121460.0,121450.0,0.02155622]
[1760080392939,1.7832581,121460.0,121450.0,0.02155622]
[1760080397252,1.5503781,121460.0,121450.0,0.02155622]
[1760080397466,1.7832181,121460.0,121450.0,0.02155622]
[1760080400143,1.5503781,121460.0,121450.0,0.02155622]
[1760080400350,1.7832181,121460.0,121450.0,0.02155622]
[1760080400562,1.86634016,121460.0,121450.0,0.02155622]
[1760080400772,1.87400959,121460.0,121450.0,0.00024181]
[1760080401199,2.06682439,121460.0,121450.0,0.00024181]
[1760080401434,6.52772139,121460.0,121450.0,0.00024181]
[1760080401638,7.29678192,121460.0,121450.0,0.00024181]
[1760080401845,6.69450139,121460.0,121450.0,0.00024181]
[1760080402058,7.29678192,121460.0,121450.0,0.00024181]
[1760080402267,2.06682439,121460.0,121450.0,0.00024181]
[1760080402475,6.26068039,121460.0,121450.0,0.00024181]
[1760080402682,6.55584539,121460.0,121450.0,0.00024181]
[1760080402908,6.55212239,121460.0,121450.0,0.00024181]
[1760080403120,6.53639239,121460.0,121450.0,0.00024181]
[1760080403342,3.31073939,121460.0,121450.0,0.00024181]
[1760080403558,2.04544755,121460.0,121450.0,0.00024181]
[1760080403806,3.73627355,121460.0,121450.0,0.00024181]
[1760080404006,4.16204955,121460.0,121450.0,0.00024181]
[1760080404228,3.68197955,121460.0,121450.0,0.00024181]
[1760080404445,2.74312955,121460.0,121450.0,0.00024181]
[1760080404660,3.08601302,121460.0,121450.0,0.00024181]
[1760080404877,2.04544755,121460.0,121450.0,0.00024181]
[1760080405296,3.60097855,121460.0,121450.0,0.00024181]
[1760080405554,3.68624555,121460.0,121450.0,0.00024181]
[1760080405764,3.56045655,121460.0,121450.0,0.00024181]
[1760080405972,3.46467255,121460.0,121450.0,0.00024181]
[1760080406179,3.67698455,121460.0,121450.0,0.00024181]
[1760080406398,3.66720955,121460.0,121450.0,0.00024181]
[1760080406822,2.04544755,121460.0,121450.0,0.00024181]
[1760080407242,1.38396755,121460.0,121450.0,0.00024181]
[1760080407451,2.15725755,121460.0,121450.0,0.00024181]
[1760080407873,1.72857755,121460.0,121450.0,0.00024181]
[1760080408084,2.15721755,121460.0,121450.0,0.00024181]
[1760080408294,1.92437755,121460.0,121450.0,0.00024181]
[1760080408505,2.15721755,121460.0,121450.0,0.00024181]
[1760080408941,1.49573755,121460.0,121450.0,0.00024181]
[1760080409139,2.04547317,121460.0,121450.0,0.00024181]
[1760080409661,2.2330583,121460.0,121450.0,0.00024181]
[1760080409863,2.2330983,121460.0,121450.0,0.00024181]
[1760080410496,2.0002183,121460.0,121450.0,0.00024181]
[1760080410710,2.23310962,121460.0,121450.0,0.00024181]
[1760080411118,1.53366629,121460.0,121450.0,0.00024181]
[1760080411338,1.36086629,121460.0,121450.0,0.16491863]
[1760080411569,1.99985629,121460.0,121450.0,0.03652372]
[1760080411779,1.57125629,121460.0,121450.0,0.03652372]
[1760080412029,1.99989629,121460.0,121450.0,0.03652372]
[1760080412234,1.99889629,121460.0,121450.0,0.03652372]
[1760080412447,1.60189794,121460.0,121450.0,0.20120053]
[1760080412655,2.26341794,121460.0,121450.0,0.24970494]
[1760080413106,2.25573423,121460.0,121450.0,0.24970494]
[1760080413360,2.25473423,121460.0,121450.0,0.22251494]
[1760080413971,2.25473423,121460.0,121450.0,0.05783812]
[1760080414174,2.04438423,121460.0,121450.0,0.05783812]
[1760080414530,2.27726423,121460.0,121450.0,0.05783812]
[1760080416008,2.04438423,121460.0,121450.0,0.05783812]
[1760080416235,2.27726423,121460.0,121450.0,0.05783812]
[1760080416601,2.04438423,121460.0,121450.0,0.05783812]
[1760080416852,1.67507757,121460.0,121450.0,0.05783812]
[1760080417065,2.27726423,121460.0,121450.0,0.05783812]
[1760080417602,2.0520695,121460.0,121450.0,0.02155621]
[1760080417846,2.2849095,121460.0,121450.0,0.02155621]
[1760080418101,2.0520695,121460.0,121450.0,0.02155621]
[1760080418350,3.3965185,121460.0,121450.0,0.02155621]
[1760080418849,3.0098355,121460.0,121450.0,0.02155621]
[1760080419341,2.42302045,121460.0,121450.0,0.02155621]
[1760080419586,3.32627387,121460.0,121450.0,0.02155621]
[1760080420159,3.09343387,121460.0,121450.0,0.02155621]
[1760080420421,3.32627387,121460.0,121450.0,0.02155621]
[1760080420739,3.15606587,121460.0,121450.0,0.02155621]
[1760080420919,2.82906587,121460.0,121450.0,0.02155621]
[1760080421138,2.17270787,121460.0,121450.0,0.04018081]
[1760080421359,3.01350987,121460.0,121450.0,0.04018081]
[1760080421577,2.988764,121460.0,121450.0,0.02155621]
[1760080423178,2.755924,121460.0,121450.0,0.02155621]
[1760080423389,1.84301458,121460.0,121450.0,0.02155621]
[1760080423610,2.576562,121460.0,121450.0,0.02155621]
[1760080424452,2.927592,121460.0,121450.0,0.02155621]
[1760080424901,2.147962,121460.0,121450.0,0.04131481]
[1760080425119,1.915122,121460.0,121450.0,0.04131481]
[1760080425330,1.65077858,121460.0,121450.0,0.05759481]
[1760080425548,2.554032,121460.0,121450.0,0.05759481]
[1760080425758,2.30582039,121460.0,121450.0,0.06893481]
[1760080425970,2.53866039,121460.0,121450.0,0.06893481]
[1760080426199,2.53866039,121460.0,121450.0,0.04917621]
[1760080427503,2.53866039,121460.0,121450.0,0.02155621]
[1760080427733,1.44047087,121460.0,121450.0,0.02155621]
[1760080427955,2.57656429,121460.0,121450.0,0.02155621]
[1760080428439,1.67331087,121460.0,121450.0,0.02155621]
[1760080428656,2.57656429,121460.0,121450.0,0.02155621]
[1760080428797,1.67331087,121460.0,121450.0,0.02155621]
[1760080429209,2.57656429,121460.0,121450.0,0.02155621]
[1760080429881,2.85674029,121460.0,121450.0,0.02155621]
[1760080430435,2.7106238,121460.0,121450.0,0.02155621]
[1760080430674,2.71374906,121460.0,121450.0,0.0002418]
[1760080430882,2.94658906,121460.0,121450.0,0.0002418]
[1760080431091,2.71374906,121460.0,121450.0,0.0002418]
[1760080431301,2.94658906,121460.0,121450.0,0.0002418]
[1760080431515,2.96790347,121460.0,121450.0,0.0002418]
[1760080432390,2.73506347,121460.0,121450.0,0.0002418]
[1760080432599,2.51635676,121460.0,121450.0,0.0002418]
[1760080433228,2.96798347,121460.0,121450.0,0.0002418]
[1760080433860,2.96798712,121460.0,121450.0,0.0002418]
[1760080436203,2.30646712,121460.0,121450.0,0.0002418]
[1760080436411,2.96794712,121460.0,121450.0,0.0002418]
[1760080437507,2.96795516,121460.0,121450.0,0.0002418]
[1760080437715,2.23615245,121460.0,121450.0,0.0002418]
[1760080438359,2.34586345,121460.0,121450.0,0.0002418]
[1760080438785,2.34587388,121460.0,121450.0,0.0002418]
[1760080439213,2.11299388,121460.0,121450.0,0.0002418]
[1760080439431,2.34587388,121460.0,121450.0,0.0002418]
[1760080440359,2.11299388,121460.0,121450.0,0.0002418]
[1760080440578,2.79746059,121460.0,121450.0,0.0002418]
[1760080441669,2.56462059,121460.0,121450.0,0.0002418]
[1760080441883,5.26740459,121460.0,121450.0,0.0002418]
[1760080442099,4.62164759,121460.0,121450.0,0.0002418]
[1760080442326,3.48467859,121460.0,121450.0,0.0002418]
[1760080442539,3.12836359,121460.0,121450.0,0.0002418]
[1760080442756,1.22461946,121460.0,121450.0,0.0002418]
[1760080442974,2.19227847,121460.0,121450.0,0.0161718]
[1760080443193,2.19227847,121460.0,121450.0,0.03999325]
[1760080443422,1.95943847,121460.0,121450.0,0.03999325]
[1760080443645,2.19231847,121460.0,121450.0,0.03999325]
[1760080443906,2.21484847,121460.0,121450.0,0.02406325]
[1760080444323,2.21484847,121460.0,121450.0,0.0002418]
[1760080445622,1.55336847,121460.0,121450.0,0.0002418]
[1760080445850,1.89624847,121460.0,121450.0,0.0002418]
[1760080446079,2.19231847,121460.0,121450.0,0.0002418]
[1760080446524,2.21484847,121460.0,121450.0,0.0002418]
[1760080447680,1.70308641,121460.0,121450.0,0.02155621]
[1760080447923,2.13168641,121460.0,121450.0,0.02155621]
[1760080448553,1.47024641,121460.0,121450.0,0.02155621]
[1760080448770,2.13168641,121460.0,121450.0,0.02155621]
[1760080448988,1.47024641,121460.0,121450.0,0.02155621]
[1760080449220,2.13168641,121460.0,121450.0,0.02155621]
[1760080450503,1.47024641,121460.0,121450.0,0.02155621]
[1760080450764,0.56699299,121460.0,121450.0,0.02155621]
[1760080450964,2.13168641,121460.0,121450.0,0.02155621]
[1760080451644,1.22843299,121460.0,121450.0,0.02155621]
[1760080451874,2.13168641,121460.0,121450.0,0.02155621]
[1760080452335,1.89884641,121460.0,121450.0,0.02155621]
[1760080452751,2.13168641,121460.0,121450.0,0.02155621]
[1760080453391,0.99559299,121460.0,121450.0,0.02155621]
[1760080453605,2.13168641,121460.0,121450.0,0.02155621]
[1760080453814,2.90702241,121460.0,121450.0,0.02155621]
[1760080454688,2.90702241,121460.0,121450.0,0.0002418]
[1760080454689,3.44177118,121460.0,121450.0,0.0002418]
[1760080456065,1.85405105,121460.0,121450.0,0.0002418]
[1760080456310,3.42932618,121460.0,121450.0,0.0002418]
[1760080456555,2.97769947,121460.0,121450.0,0.0002418]
[1760080457197,2.49533303,121460.0,121450.0,0.0002418]
[1760080457864,0.62469661,121460.0,121450.0,0.0002418]
[1760080458086,1.87619703,121460.0,121450.0,0.0158318]
[1760080458303,2.10903703,121460.0,121450.0,0.02321842]
[1760080458519,2.10903703,121460.0,121450.0,0.00762842]
[1760080458741,1.96258403,121460.0,121450.0,0.00762842]
[1760080459412,1.84651003,121460.0,121450.0,0.00762842]
[1760080459633,1.84651003,121460.0,121450.0,0.02894283]
[1760080460316,1.84651003,121460.0,121450.0,0.02155621]
[1760080460964,1.8465122,121460.0,121450.0,0.03714621]
[1760080461409,1.44483014,121460.0,121450.0,0.04913621]
[1760080461623,1.76339014,121460.0,121450.0,0.23854303]
[1760080462278,1.53055014,121460.0,121450.0,0.23854303]
[1760080462491,1.76339014,121460.0,121450.0,0.07386621]
[1760080462736,1.53055014,121460.0,121450.0,0.04913621]
[1760080462935,1.76339014,121460.0,121450.0,0.02155621]
[1760080463150,1.77023014,121460.0,121450.0,0.02155621]
[1760080463367,1.76339014,121460.0,121450.0,0.02155621]
[1760080463824,1.53055014,121460.0,121450.0,0.02155621]
[1760080464047,1.76339014,121460.0,121450.0,0.02155621]
[1760080465786,1.53055014,121460.0,121450.0,0.02155621]
[1760080466010,1.77023014,121460.0,121450.0,0.02155621]
[1760080466207,1.77023014,121460.0,121450.0,0.0215562]
[1760080466913,2.45221014,121460.0,121450.0,0.0215562]
[1760080467308,2.21937014,121460.0,121450.0,0.0215562]
[1760080467490,2.45221014,121460.0,121450.0,0.0215562]
[1760080468308,1.87499314,121460.0,121450.0,0.0215562]
[1760080468508,1.77023014,121460.0,121450.0,0.0215562]
[1760080468709,1.76339014,121460.0,121450.0,0.0215562]
[1760080469264,1.53055014,121460.0,121450.0,0.0215562]
[1760080469478,1.76339014,121460.0,121450.0,0.0215562]
[1760080472760,2.65629191,121460.0,121450.0,0.0215562]
[1760080478755,2.42345191,121460.0,121450.0,0.0215562]
[1760080478960,2.65629191,121460.0,121450.0,0.0215562]
[1760080480676,2.42345191,121460.0,121450.0,0.0215562]
[1760080480892,4.68241691,121460.0,121450.0,0.0215562]
[1760080481116,4.68243391,121460.0,121450.0,0.0215562]
[1760080481327,4.98498391,121460.0,121450.0,0.0215562]
[1760080481570,4.25710431,121460.0,121450.0,0.0215562]
[1760080481750,4.26925831,121460.0,121450.0,0.0215562]
[1760080482055,4.31058131,121460.0,121450.0,0.0215562]
[1760080482272,4.00917331,121460.0,121450.0,0.0215562]
[1760080482535,3.89253531,121460.0,121450.0,0.0215562]
[1760080482793,5.70109808,121460.0,121450.0,0.00024179]
[1760080483016,5.88540519,121460.0,121450.0,0.00024179]
[1760080483226,6.00169208,121460.0,121450.0,0.00024179]
[1760080483467,6.66780675,121460.0,121450.0,0.00024179]
[1760080483671,2.50942892,121460.0,121450.0,0.00024179]
[1760080483885,1.88945231,121460.0,121450.0,0.00024179]
[1760080484101,5.88343631,121460.0,121450.0,0.00024179]
[1760080484346,5.46531031,121460.0,121450.0,0.00024179]
[1760080484584,4.09848903,121460.0,121450.0,0.00024179]
[1760080484794,3.57384403,121460.0,121450.0,0.00024179]
[1760080485012,3.17294603,121460.0,121450.0,0.00024179]
[1760080485201,1.90683403,121460.0,121450.0,0.00024179]
[1760080485374,3.01722803,121460.0,121450.0,0.00024179]
[1760080485596,2.77235903,121460.0,121450.0,0.00024179]
[1760080485962,3.14666703,121460.0,121450.0,0.00024179]
[1760080486171,3.14806703,121460.0,121450.0,0.00024179]
[1760080486386,3.14823303,121460.0,121450.0,0.00024179]
[1760080486597,3.01941803,121460.0,121450.0,0.00024179]
[1760080486919,2.99249803,121460.0,121450.0,0.00024179]
[1760080487136,1.90683403,121460.0,121450.0,0.00024179]
[1760080487559,3.40790803,121460.0,121450.0,0.00024179]
[1760080487776,3.26789003,121460.0,121450.0,0.00024179]
[1760080487997,3.63177003,121460.0,121450.0,0.00024179]
[1760080488230,3.83199003,121460.0,121450.0,0.00024179]
[1760080488486,3.84274603,121460.0,121450.0,0.00024179]
[1760080488704,1.90683403,121460.0,121450.0,0.00024179]
[1760080488917,3.82930603,121460.0,121450.0,0.00024179]
[1760080489137,3.85557303,121460.0,121450.0,0.00024179]
[1760080489351,3.95719403,121460.0,121450.0,0.00024179]
[1760080489584,3.95162503,121460.0,121450.0,0.00024179]
[1760080489837,1.90683403,121460.0,121450.0,0.00024179]
[1760080490056,4.14409003,121460.0,121450.0,0.00024179]
[1760080490268,1.90683403,121460.0,121450.0,0.00024179]
[1760080490479,4.38262003,121460.0,121450.0,0.00024179]
[1760080490687,4.23523603,121460.0,121450.0,0.00024179]
[1760080490918,4.73682303,121460.0,121450.0,0.00024179]
[1760080491138,5.11122503,121460.0,121450.0,0.00024179]
[1760080491358,5.25805903,121460.0,121450.0,0.00024179]
[1760080491570,4.77490003,121460.0,121450.0,0.00024179]
[1760080491786,5.27796103,121460.0,121450.0,0.00024179]
[1760080492005,5.04514703,121460.0,121450.0,0.00024179]
[1760080492223,1.30458059,121460.0,121450.0,0.00024179]
[1760080492485,3.63980803,121460.0,121450.0,0.00024179]
[1760080492700,3.62401003,121460.0,121450.0,0.00024179]
[1760080492918,3.38809503,121460.0,121450.0,0.00024179]
[1760080493133,3.97523903,121460.0,121450.0,0.00024179]
[1760080493352,4.22711703,121460.0,121450.0,0.00024179]
[1760080493823,4.16678303,121460.0,121450.0,0.00024179]
[1760080494077,2.35177403,121460.0,121450.0,0.00024179]
[1760080494292,4.55771903,121460.0,121450.0,0.00024179]
[1760080494511,2.35177403,121460.0,121450.0,0.00024179]
[1760080494921,4.83546303,121460.0,121450.0,0.00024179]
[1760080495154,2.35177403,121460.0,121450.0,0.00024179]
[1760080495537,4.95666903,121460.0,121450.0,0.00024179]
[1760080495743,5.01382303,121460.0,121450.0,0.00024179]
[1760080495956,5.10399203,121460.0,121450.0,0.00024179]
[1760080496164,2.35177403,121460.0,121450.0,0.00024179]
[1760080496362,3.90557803,121460.0,121450.0,0.00024179]
[1760080496704,4.54153403,121460.0,121450.0,0.00024179]
[1760080496904,5.02502703,121460.0,121450.0,0.00024179]
[1760080497045,5.02532603,121460.0,121450.0,0.00024179]
[1760080497248,5.22024203,121460.0,121450.0,0.00024179]
[1760080497451,5.44441803,121460.0,121450.0,0.00024179]
[1760080497650,2.35177403,121460.0,121450.0,0.00024179]
[1760080497866,5.04681603,121460.0,121450.0,0.00024179]
[1760080498074,5.11528003,121460.0,121450.0,0.00024179]
[1760080498279,5.52718603,121460.0,121450.0,0.00024179]
[1760080498484,5.76019603,121460.0,121450.0,0.00024179]
[1760080498772,5.82572762,121460.0,121450.0,0.00024179]
[1760080498979,2.35307462,121460.0,121450.0,0.00024179]
[1760080499184,5.82791262,121460.0,121450.0,0.00024179]
[1760080499384,5.82677762,121460.0,121450.0,0.00024179]
[1760080499787,5.72847662,121460.0,121450.0,0.00024179]
[1760080499970,5.64259262,121460.0,121450.0,0.00024179]
[1760080500213,1.69159462,121460.0,121450.0,0.00024179]
[1760080500431,2.35307462,121460.0,121450.0,0.00024179]
[1760080500634,3.20268762,121460.0,121450.0,0.00024179]
[1760080500882,3.81818562,121460.0,121450.0,0.00024179]
[1760080501254,2.35307462,121460.0,121450.0,0.00024179]
[1760080501532,4.51809662,121460.0,121450.0,0.00024179]
[1760080501745,4.27308962,121460.0,121450.0,0.00024179]
[1760080501968,2.35307462,121460.0,121450.0,0.00024179]
[1760080502188,4.34558162,121460.0,121450.0,0.00024179]
[1760080502414,4.68579862,121460.0,121450.0,0.00024179]
[1760080502624,5.01788162,121460.0,121450.0,0.00024179]
[1760080502843,5.51632162,121460.0,121450.0,0.00024179]
[1760080503068,5.37260562,121460.0,121450.0,0.00024179]
[1760080503292,5.85744662,121460.0,121450.0,0.00024179]
[1760080503515,5.64799862,121460.0,121450.0,0.00024179]
[1760080503745,5.48804862,121460.0,121450.0,0.00024179]
[1760080503962,2.35307462,121460.0,121450.0,0.00024179]
[1760080504154,5.65951962,121460.0,121450.0,0.00024179]
[1760080504368,5.91507262,121460.0,121450.0,0.00024179]
[1760080504592,6.33236362,121460.0,121450.0,0.00024179]
[1760080504796,6.91400862,121460.0,121450.0,0.00024179]
[1760080505015,6.89832262,121460.0,121450.0,0.00024179]
[1760080505206,6.41139462,121460.0,121450.0,0.00024179]
[1760080505481,2.35307462,121460.0,121450.0,0.00024179]
[1760080505691,5.91973062,121460.0,121450.0,0.00024179]
[1760080505904,5.91906062,121460.0,121450.0,0.00024179]
[1760080506118,5.82136062,121460.0,121450.0,0.00024179]
[1760080506305,5.68314962,121460.0,121450.0,0.00024179]
[1760080506558,5.43245262,121460.0,121450.0,0.00024179]
[1760080506768,5.32472165,121460.0,121450.0,0.00024179]
[1760080506985,2.35307665,121460.0,121450.0,0.00024179]
[1760080507427,6.09686665,121460.0,121450.0,0.00024179]
[1760080507693,2.97305214,121460.0,121450.0,0.00024179]
[1760080507971,7.72052237,121460.0,121450.0,0.00024179]
[1760080508190,7.95336237,121460.0,121450.0,0.00024179]
[1760080508878,7.72052237,121460.0,121450.0,0.00024179]
[1760080509133,7.50846237,121460.0,121450.0,0.00024179]
[1760080509352,7.53058359,121460.0,121450.0,0.00024179]
[1760080509571,7.50846237,121460.0,121450.0,0.00024179]
[1760080511539,2.88078537,121460.0,121450.0,0.00024179]
[1760080511979,7.53058359,121460.0,121450.0,0.00024179]
[1760080512415,7.50846237,121460.0,121450.0,0.00024179]
[1760080513839,7.53058359,121460.0,121450.0,0.00024179]
[1760080514521,0.9701519,121450.0,121430.0,0.00012427]
[1760080514740,2.18515932,121440.0,121430.0,0.00012427]
[1760080514957,6.33590712,121440.0,121430.0,0.00012427]
[1760080515174,6.10306712,121440.0,121430.0,0.00012427]
[1760080515387,7.12878153,121440.0,121430.0,0.00012427]
[1760080515626,6.12438153,121440.0,121430.0,0.00012427]
[1760080515846,6.78586153,121440.0,121430.0,0.00012427]
[1760080516062,6.55302153,121440.0,121430.0,0.00012427]
[1760080516271,6.78586153,121440.0,121430.0,0.00012427]
[1760080516487,6.70014153,121440.0,121430.0,0.00012427]
[1760080516724,6.78586153,121440.0,121430.0,0.00012427]
[1760080517161,6.78686153,121440.0,121430.0,0.00012427]
[1760080517603,2.15918453,121440.0,121430.0,0.00012427]
[1760080517854,2.16018453,121440.0,121430.0,0.00012427]
[1760080518066,6.78786153,121440.0,121430.0,0.00012427]
[1760080520181,4.48292753,121440.0,121430.0,0.00012427]
[1760080520409,4.64132253,121440.0,121430.0,0.00201346]
[1760080520617,4.62145553,121440.0,121430.0,0.00201346]
[1760080520825,2.51113693,121440.0,121430.0,0.00201346]
[1760080521037,3.22693893,121440.0,121430.0,0.00201346]
[1760080521246,3.19330693,121440.0,121430.0,0.00201346]
[1760080521457,3.50341593,121440.0,121430.0,0.00201346]
[1760080521676,2.16821693,121440.0,121430.0,0.00201346]
[1760080522061,3.68950793,121440.0,121430.0,0.00201346]
[1760080522277,3.75713293,121440.0,121430.0,0.00201346]
[1760080522433,2.16821693,121440.0,121430.0,0.00201346]
[1760080522637,3.77755693,121440.0,121430.0,0.00201346]
[1760080522845,3.77876993,121440.0,121430.0,0.00201346]
[1760080523062,2.16821693,121440.0,121430.0,0.00201346]
[1760080523304,4.30802793,121440.0,121430.0,0.00201346]
[1760080523507,2.16821693,121440.0,121430.0,0.00201346]
[1760080523913,4.42673993,121440.0,121430.0,0.00201346]
[1760080524110,3.72573193,121440.0,121430.0,0.00201346]
[1760080524333,4.58222293,121440.0,121430.0,0.00201346]
[1760080524506,4.40803593,121440.0,121430.0,0.00201346]
[1760080524703,4.33740793,121440.0,121430.0,0.00201346]
[1760080524957,4.47459193,121440.0,121430.0,0.00201346]
[1760080525117,4.73875193,121440.0,121430.0,0.00201346]
[1760080525463,4.62876493,121440.0,121430.0,0.00201346]
[1760080525672,4.25491893,121440.0,121430.0,0.00201346]
[1760080525884,4.15006093,121440.0,121430.0,0.00201346]
[1760080526099,2.16821693,121440.0,121430.0,0.00201346]
[1760080526312,4.40007093,121440.0,121430.0,0.00201346]
[1760080526515,4.53797393,121440.0,121430.0,0.00201346]
[1760080526764,4.55077293,121440.0,121430.0,0.00201346]
[1760080526981,4.64194593,121440.0,121430.0,0.00201346]
[1760080527205,4.78286093,121440.0,121430.0,0.00201346]
[1760080527418,5.27316793,121440.0,121430.0,0.00201346]
[1760080527629,5.33590693,121440.0,121430.0,0.00201346]
[1760080527836,5.20509193,121440.0,121430.0,0.00201346]
[1760080528078,5.24363183,121440.0,121430.0,0.00201346]
[1760080528288,5.06867283,121440.0,121430.0,0.00201346]
[1760080528498,5.22262183,121440.0,121430.0,0.00201346]
[1760080528714,5.66403883,121440.0,121430.0,0.00201346]
[1760080528960,2.16821583,121440.0,121430.0,0.00201346]
[1760080529168,6.31112883,121440.0,121430.0,0.00201346]
[1760080529408,6.34370283,121440.0,121430.0,0.00201346]
[1760080529652,6.32297583,121440.0,121430.0,0.00201346]
[1760080529859,5.37906683,121440.0,121430.0,0.00201346]
[1760080530064,2.16821583,121440.0,121430.0,0.00201346]
[1760080530272,5.43568683,121440.0,121430.0,0.00201346]
[1760080530477,3.56954783,121440.0,121430.0,0.00201346]
[1760080530715,3.74551983,121440.0,121430.0,0.00201346]
[1760080530937,4.04355083,121440.0,121430.0,0.00201346]
[1760080531172,3.91295083,121440.0,121430.0,0.00201346]
[1760080531389,3.58261883,121440.0,121430.0,0.00201346]
[1760080531612,3.60960683,121440.0,121430.0,0.00201346]
[1760080531859,1.35245995,121440.0,121430.0,0.00201346]
[1760080532111,3.39454683,121440.0,121430.0,0.00201346]
[1760080532327,2.16821583,121440.0,121430.0,0.00201346]
[1760080532761,3.60085483,121440.0,121430.0,0.00201346]
[1760080533001,3.96050583,121440.0,121430.0,0.00201346]
[1760080533274,4.14378883,121440.0,121430.0,0.00201346]
[1760080533487,4.13353383,121440.0,121430.0,0.00201346]
[1760080533704,2.16821583,121440.0,121430.0,0.00201346]
[1760080533922,2.08249583,121440.0,121430.0,0.00201346]
[1760080534141,4.09176883,121440.0,121430.0,0.00201346]
[1760080534355,4.26952583,121440.0,121430.0,0.00201346]
[1760080534585,4.25563983,121440.0,121430.0,0.00201346]
[1760080534792,2.16821583,121440.0,121430.0,0.00201346]
[1760080535000,4.26798383,121440.0,121430.0,0.00201346]
[1760080535206,4.05563983,121440.0,121430.0,0.00201346]
[1760080535418,4.06612083,121440.0,121430.0,0.00201346]
[1760080535649,4.25563983,121440.0,121430.0,0.00201346]
[1760080535902,4.35275583,121440.0,121430.0,0.00201346]
[1760080536113,2.16821583,121440.0,121430.0,0.00201346]
[1760080536309,4.21023483,121440.0,121430.0,0.00201346]
[1760080536555,2.16821583,121440.0,121430.0,0.00201346]
[1760080536773,4.44247383,121440.0,121430.0,0.00201346]
[1760080537001,4.51955583,121440.0,121430.0,0.00201346]
[1760080537259,5.24667583,121440.0,121430.0,0.00201346]
[1760080537483,4.50397983,121440.0,121430.0,0.00201346]
[1760080537745,4.24880883,121440.0,121430.0,0.00201346]
[1760080537994,3.53834683,121440.0,121430.0,0.00201346]
[1760080538263,3.54176883,121440.0,121430.0,0.00201346]
[1760080538525,4.24921883,121440.0,121430.0,0.00201346]
[1760080538789,4.13067183,121440.0,121430.0,0.00201346]
[1760080539033,4.14849183,121440.0,121430.0,0.00201346]
[1760080539308,4.16136483,121440.0,121430.0,0.00201346]
[1760080539558,4.54337483,121440.0,121430.0,0.00201346]
[1760080539799,5.11645567,121440.0,121430.0,0.00201346]
[1760080540004,5.15022567,121440.0,121430.0,0.00201346]
[1760080540229,2.16819367,121440.0,121430.0,0.00201346]
[1760080540437,5.33028367,121440.0,121430.0,0.00201346]
[1760080540644,5.39998967,121440.0,121430.0,0.00201346]
[1760080540849,5.30808467,121440.0,121430.0,0.00201346]
[1760080541040,2.16019367,121440.0,121430.0,0.00201346]
[1760080541474,5.40851267,121440.0,121430.0,0.00201346]
[1760080541684,5.37124267,121440.0,121430.0,0.00201346]
[1760080541895,5.45415394,121440.0,121430.0,0.00201346]
[1760080542044,2.16019367,121440.0,121430.0,0.00201346]
[1760080542246,4.48019067,121440.0,121430.0,0.00201346]
[1760080542457,3.29160967,121440.0,121430.0,0.00201346]
[1760080542638,3.73987867,121440.0,121430.0,0.00201346]
[1760080542844,4.17625867,121440.0,121430.0,0.00201346]
[1760080543040,2.16019367,121440.0,121430.0,0.00201346]
[1760080543269,4.17721897,121440.0,121430.0,0.00201346]
[1760080543478,4.40032681,121440.0,121430.0,0.00201346]
[1760080543696,6.21274381,121440.0,121430.0,0.00201346]
[1760080543855,6.85593381,121440.0,121430.0,0.00201346]
[1760080544483,7.97881553,121440.0,121430.0,0.00201346]
[1760080544917,8.21165553,121440.0,121430.0,0.00201346]
[1760080545123,6.85593381,121440.0,121430.0,0.00201346]
[1760080545746,6.63109381,121440.0,121430.0,0.00201346]
[1760080545995,8.27228876,121440.0,121430.0,0.00201346]
[1760080546208,8.5675379,121440.0,121430.0,0.00201346]
[1760080546520,3.96234223,121440.0,121430.0,0.00201346]
[1760080546648,8.59001923,121440.0,121430.0,0.00201346]
[1760080547504,3.96234223,121440.0,121430.0,0.00201346]
[1760080547703,8.59001923,121440.0,121430.0,0.00201346]
[1760080547921,8.35717923,121440.0,121430.0,0.00201346]
[1760080548130,8.59001923,121440.0,121430.0,0.00201346]
[1760080548342,3.96234223,121440.0,121430.0,0.00201346]
[1760080548546,8.35717923,121440.0,121430.0,0.00201346]
[1760080548749,8.59001923,121440.0,121430.0,0.00201346]
[1760080548978,8.35717923,121440.0,121430.0,0.00201346]
[1760080549186,2.60662051,121440.0,121430.0,0.00201346]
[1760080549309,7.23429751,121440.0,121430.0,0.00201346]
[1760080550350,7.21181618,121440.0,121430.0,0.00201346]
[1760080550960,2.35129918,121440.0,121430.0,0.00201346]
[1760080551173,6.97897618,121440.0,121430.0,0.00201346]
[1760080551511,7.21181618,121440.0,121430.0,0.00201346]
[1760080551804,2.58413918,121440.0,121430.0,0.00201346]
[1760080552009,7.21181618,121440.0,121430.0,0.00201346]
[1760080553545,7.20381618,121440.0,121430.0,0.00201346]
[1760080553983,7.2038524,121440.0,121430.0,0.00201346]
[1760080555272,8.55957412,121440.0,121430.0,0.00201346]
[1760080556110,8.58205545,121440.0,121430.0,0.00201346]
[1760080556749,3.95437845,121440.0,121430.0,0.00201346]
[1760080556935,8.58205545,121440.0,121430.0,0.00201346]
[1760080557184,3.95437845,121440.0,121430.0,0.00201346]
[1760080557425,8.58205545,121440.0,121430.0,0.00201346]
[1760080557648,3.95437845,121440.0,121430.0,0.00201346]
[1760080557893,8.58205545,121440.0,121430.0,0.00201346]
[1760080558521,8.59005545,121440.0,121430.0,0.00201346]
[1760080559192,3.96237845,121440.0,121430.0,0.00201346]
[1760080559435,8.59005545,121440.0,121430.0,0.00201346]
[1760080559630,3.96237739,121440.0,121430.0,0.00201346]
[1760080559842,8.64460883,121440.0,121430.0,0.00201346]
[1760080560045,8.66936442,121440.0,121430.0,0.00201346]
[1760080560694,4.04168742,121440.0,121430.0,0.00201346]
[1760080560912,8.66936442,121440.0,121430.0,0.00201346]
[1760080562364,4.04168742,121440.0,121430.0,0.00201346]
[1760080562578,8.66936442,121440.0,121430.0,0.00201346]
[1760080563048,8.47180547,121440.0,121430.0,0.00201346]
[1760080564219,8.23896547,121440.0,121430.0,0.00201346]
[1760080564450,8.47180559,121440.0,121430.0,0.00201346]